fUST/lending_fUST_20240120
["ID","MTS","AMOUNT","RATE_DAILY","PERIOD"]
[312242783,1705699865094,-500.0,0.00042465,31]
[312242784,1705699865103,-500.0,0.00042465,31]
[312242785,1705699865113,-181.83094124,0.00042465,31]
[312242786,1705699865123,-639.46,0.00042465,31]
[312242787,1705699865132,-1679.05,0.00042465,31]
[312242788,1705699865141,-500.0,0.00042465,2]
[312242789,1705699865151,-2000.0,0.00042493,30]
[312242790,1705699865160,-160.0,0.00042495,4]
[312242791,1705699865170,-617.91539569,0.000425,7]
[312242792,1705699865181,-159.79980507,0.00042501,30]
[312242793,1705699865190,-154.41164271,0.00042502,30]
[312242794,1705699865199,-154.41164271,0.00042504,30]
[312242795,1705699865208,-159.79980507,0.00042532,30]
[312242796,1705699865218,-159.79980507,0.00042638,30]
[312242797,1705699865227,-411.419243,0.00042739,7]
[312242798,1705699865236,-411.419243,0.00042739,7]
[312242799,1705699865245,-151.0,0.00042739,7]
[312242800,1705699865254,-157.205432,0.00042739,7]
[312242801,1705699865264,-157.205432,0.00042739,7]
[312242802,1705699865273,-1265.817322,0.00042739,7]
[312242803,1705699865283,-1265.817322,0.00042739,7]
[312242804,1705699865292,-500.0,0.00042739,31]
[312242805,1705699865302,-558.61,0.00042739,31]
[312242806,1705699865311,-500.0,0.00042739,31]
[312242807,1705699865320,-342.68518406,0.00042739,31]
[312242808,1705699865330,-500.0,0.00042739,31]
[312242809,1705699865339,-889.95,0.00042739,31]
[312242810,1705699865350,-500.0,0.00042739,31]
[312242811,1705699865358,-500.0,0.00042739,31]
[312242812,1705699865369,-500.0,0.00042739,31]
[312242813,1705699865379,-500.0,0.00042739,31]
[312242814,1705699865392,-500.0,0.00042739,7]
[312242815,1705699865402,-500.0,0.00042739,31]
[312242816,1705699865411,-500.0,0.00042739,7]
[312242817,1705699865420,-521.43320027,0.00042739,31]
[312242818,1705699865432,-500.0,0.00042739,31]
[312242819,1705699865442,-1009.39,0.00042739,31]
[312242820,1705699865451,-500.0,0.00042739,31]
[312242821,1705699865461,-500.0,0.00042739,31]
[312242822,1705699865474,-359.28310378,0.00042739,31]
[312242823,1705699865484,-500.0,0.00042739,31]
[312242824,1705699865494,-500.0,0.00042739,31]
[312242825,1705699865504,-500.0,0.00042739,31]
[312242826,1705699865514,-868.64,0.00042739,31]
[312242827,1705699865523,-500.0,0.00042739,31]
[312242828,1705699865534,-500.0,0.00042739,31]
[312242829,1705699865543,-1018.44,0.00042739,31]
[312242830,1705699865553,-500.0,0.00042739,31]
[312242831,1705699865562,-500.0,0.00042739,31]
[312242832,1705699865571,-500.0,0.00042739,31]
[312242833,1705699865581,-500.0,0.00042739,31]
[312242834,1705699865592,-512.16,0.00042739,31]
[312242835,1705699865673,-732.15,0.00042739,31]
[312242836,1705699865689,-500.0,0.00042739,31]
[312242837,1705699865698,-500.0,0.00042739,31]
[312242838,1705699865707,-500.0,0.00042739,31]
[312242839,1705699865716,-500.0,0.00042739,31]
[312242840,1705699865726,-500.0,0.00042739,31]
[312242841,1705699865735,-500.0,0.00042739,31]
[312242842,1705699865744,-500.0,0.00042739,31]
[312242843,1705699865754,-500.0,0.00042739,14]
[312242844,1705699865764,-500.0,0.00042739,31]
[312242845,1705699865774,-500.0,0.00042739,31]
[312242846,1705699865784,-500.0,0.00042739,31]
[312242847,1705699865793,-500.0,0.00042739,31]
[312242848,1705699865803,-500.0,0.00042739,31]
[312242849,1705699865813,-500.0,0.00042739,31]
[312242850,1705699865822,-500.0,0.00042739,31]
[312242851,1705699865832,-500.0,0.00042739,31]
[312242852,1705699865841,-478.29020375,0.00042739,31]
[312242853,1705699865850,-500.0,0.00042739,31]
[312242854,1705699865860,-500.0,0.00042739,31]
[312242855,1705699865869,-665.95,0.00042739,31]
[312242856,1705699865879,-667.54,0.00042739,31]
[312242857,1705699865888,-593.65,0.00042739,31]
[312242858,1705699865897,-500.0,0.00042739,31]
[312242859,1705699865907,-150.0,0.00042739,31]
[312242860,1705699865918,-448.39107053,0.00042739,31]
[312242861,1705699865933,-500.0,0.00042739,31]
[312242862,1705699865943,-500.0,0.00042739,31]
[312242863,1705699865953,-650.55,0.00042739,31]
[312242864,1705699865967,-500.0,0.00042739,31]
[312242865,1705699865978,-781.25,0.00042739,31]
[312242866,1705699865989,-1243.77,0.00042739,31]
[312242867,1705699865999,-500.0,0.00042739,31]
[312242868,1705699866009,-500.0,0.00042739,31]
[312242869,1705699866020,-500.0,0.00042739,31]
[312242870,1705699866031,-500.0,0.00042739,31]
[312242871,1705699866042,-500.0,0.00042739,31]
[312242872,1705699866052,-500.0,0.00042739,31]
[312242873,1705699866062,-877.17,0.00042739,31]
[312242874,1705699866071,-500.0,0.00042739,31]
[312242875,1705699866081,-587.51,0.00042739,31]
[312242876,1705699866091,-2426.04,0.00042739,31]
[312242877,1705699866100,-500.0,0.00042739,31]
[312242878,1705699866110,-500.0,0.00042739,31]
[312242879,1705699866119,-500.0,0.00042739,31]
[312242880,1705699866129,-500.0,0.00042739,31]
[312242881,1705699866139,-516.63593642,0.00042739,31]
[312242882,1705699866149,-500.0,0.00042739,31]
[312242883,1705699866159,-3410.38,0.00042739,31]
[312242884,1705699866168,-1617.45,0.00042739,31]
[312242885,1705699866182,-500.0,0.00042739,31]
[312242886,1705699866192,-500.0,0.00042739,31]
[312242887,1705699866202,-160.40654187,0.00042739,31]
[312242888,1705699866211,-544.45,0.00042739,31]
[312242889,1705699866221,-500.0,0.00042739,31]
[312242890,1705699866231,-5972.65,0.00042739,31]
[312242891,1705699866240,-1221.49,0.00042739,31]
[312242892,1705699866254,-500.0,0.00042739,31]
[312242893,1705699866277,-1604.78,0.00042739,31]
[312242894,1705699866293,-500.0,0.00042739,31]
[312242895,1705699866312,-10465.17,0.00042739,31]
[312242896,1705699866330,-2520.46,0.00042739,31]
[312242897,1705699866347,-500.0,0.00042739,31]
[312242898,1705699866365,-500.0,0.00042739,31]
[312242899,1705699866382,-500.0,0.00042739,31]
[312242900,1705699866401,-1837.35,0.00042739,31]
[312242901,1705699866418,-500.0,0.00042739,31]
[312242902,1705699866438,-510.24,0.00042739,31]
[312242903,1705699866458,-910.12,0.00042739,31]
[312242904,1705699866476,-214.16597121,0.00042739,31]
[312242905,1705699866490,-500.0,0.00042739,31]
[312242906,1705699866507,-500.0,0.00042739,31]
[312242907,1705699866522,-500.0,0.00042739,31]
[312242908,1705699866536,-500.0,0.00042739,31]
[312242909,1705699866553,-500.0,0.00042739,31]
[312242910,1705699866568,-500.0,0.00042739,31]
[312242911,1705699866583,-1567.25,0.00042739,31]
[312242912,1705699866599,-1246.54,0.00042739,31]
[312242913,1705699866613,-500.0,0.00042739,20]
[312242914,1705699866628,-500.0,0.00042739,31]
[312242915,1705699866643,-1549.67,0.00042739,31]
[312242916,1705699866657,-500.0,0.00042739,31]
[312242917,1705699866672,-7340.51,0.00042739,31]
[312242918,1705699866687,-625.0,0.00042739,31]
[312242919,1705699866701,-6633.49,0.00042739,31]
[312242920,1705699866716,-500.0,0.00042739,31]
[312242921,1705699866731,-500.0,0.00042739,2]
[312242922,1705699866745,-668.56,0.00042739,31]
[312242923,1705699866760,-8354.23,0.00042739,31]
[312242924,1705699866774,-17535.25,0.00042739,31]
[312242925,1705699866790,-500.0,0.00042739,31]
[312242926,1705699866804,-1666.75,0.00042739,31]
[312242927,1705699866818,-500.0,0.00042739,31]
[312242928,1705699866832,-500.0,0.00042739,31]
[312242929,1705699866846,-902.61,0.00042739,31]
[312242930,1705699866860,-1792.54,0.00042739,31]
[312242931,1705699866874,-500.0,0.00042739,31]
[312242932,1705699866888,-1030.85,0.00042739,31]
[312242933,1705699866903,-500.0,0.00042739,31]
[312242934,1705699866918,-1011.32,0.00042739,31]
[312242935,1705699866933,-2909.87,0.00042739,31]
[312242936,1705699866948,-500.0,0.00042739,31]
[312242937,1705699866962,-500.0,0.00042739,31]
[312242938,1705699866977,-500.0,0.00042739,31]
[312242939,1705699866992,-500.0,0.00042739,31]
[312242940,1705699867007,-500.0,0.00042739,31]
[312242941,1705699867023,-500.0,0.00042739,31]
[312242942,1705699867037,-1530.34,0.00042739,31]
[312242943,1705699867052,-2230.18,0.00042739,31]
[312242944,1705699867066,-692.13,0.00042739,31]
[312242945,1705699867079,-1637.95,0.00042739,31]
[312242946,1705699867094,-1392.64,0.00042739,31]
[312242947,1705699867108,-2007.5,0.00042739,31]
[312242948,1705699867122,-500.0,0.00042739,31]
[312242949,1705699867232,-3051.98,0.00042739,31]
[312242950,1705699867248,-500.0,0.00042739,31]
[312242951,1705699867258,-192.41536685,0.00042739,31]
[312242952,1705699867268,-500.0,0.00042739,31]
[312242953,1705699867278,-848.45,0.00042739,31]
[312242954,1705699867287,-500.0,0.00042739,31]
[312242955,1705699867296,-756.66,0.00042739,31]
[312242956,1705699867305,-500.0,0.00042739,31]
[312242957,1705699867314,-500.0,0.00042739,31]
[312242958,1705699867324,-500.0,0.00042739,31]
[312242959,1705699867333,-500.0,0.00042739,31]
[312242960,1705699867342,-787.98,0.00042739,31]
[312242961,1705699867352,-500.0,0.00042739,31]
[312242962,1705699867361,-500.0,0.00042739,31]
[312242963,1705699867372,-500.0,0.00042739,2]
[312242964,1705699867382,-22495.86979916,0.00042739,14]
[312242965,1705699867540,-10202.84952288,0.00042739,14]
[312242966,1705699867555,-260.29428997,0.00042739,14]
[312242967,1705699868316,-0.00175493,0.00022068,2]
[312242968,1705699868328,-1000.02860268,0.00022068,2]
[312242969,1705699869010,-589.21908338,0.00022068,2]
[312242970,1705699869019,-199.14321435,0.00022069,2]
[312242971,1705699869029,-784.93302602,0.0002725,2]
[312242972,1705699869038,-16555.87,0.00027251,3]
[312242973,1705699869047,-343.61549238,0.00030136,4]
[312242974,1705699869057,-868.50537945,0.00030136,2]
[312242975,1705699869066,-601.05812655,0.00030136,4]
[312242976,1705699869076,-509.91150569,0.00041095,31]
[312242977,1705699869086,-500.99613015,0.00041095,31]
[312242978,1705699869095,-500.0,0.00041095,31]
[312242979,1705699869104,-500.0,0.00041643,31]
[312242980,1705699869114,-500.0,0.00041917,31]
[312242981,1705699869123,-500.0,0.00041917,31]
[312242982,1705699869132,-265.89742224,0.00042191,31]
[312242983,1705699869142,-500.0,0.00042191,31]
[312242984,1705699869150,-500.0,0.00042465,31]
[312242985,1705699869160,-1254.01638799,0.00042739,14]
[312242986,1705699869170,-500.0,0.00042739,31]
[312242987,1705699869179,-500.0,0.00042739,31]
[312242988,1705699869190,-535.76916334,0.00042739,31]
[312242989,1705699869199,-639.46,0.00042739,31]
[312242990,1705699869208,-1679.05,0.00042739,31]
[312242991,1705699869218,-500.0,0.00042739,2]
[312242992,1705699869227,-500.0,0.00042739,31]
[312242993,1705699869236,-154.41164271,0.00042828,30]
[312242994,1705699869246,-159.79980509,0.00042864,30]
[312242995,1705699869255,-160.0,0.00042883,5]
[312242996,1705699869265,-150.04213599,0.00042889,30]
[312242997,1705699869274,-157.5,0.0004298,30]
[312242998,1705699869283,-154.0,0.0004299,30]
[312242999,1705699869292,-1000.0,0.00043,43]
[312243000,1705699869301,-2500.0,0.00043,21]
[312243001,1705699869310,-411.419243,0.00043013,7]
[312243002,1705699869319,-411.419243,0.00043013,7]
[312243003,1705699869328,-151.0,0.00043013,7]
[312243004,1705699869337,-157.205432,0.00043013,7]
[312243005,1705699869346,-157.205432,0.00043013,7]
[312243006,1705699869356,-1265.817322,0.00043013,7]
[312243007,1705699869365,-1265.817322,0.00043013,7]
[312243008,1705699869377,-10000.0,0.00043013,7]
[312243009,1705699869387,-10000.0,0.00043013,7]
[312243010,1705699869398,-506.14053466,0.00043013,31]
[312243011,1705699869408,-558.61,0.00043013,31]
[312243012,1705699869418,-500.0,0.00043013,31]
[312243013,1705699869429,-889.95,0.00043013,31]
[312243014,1705699869439,-500.0,0.00043013,31]
[312243015,1705699869448,-500.0,0.00043013,31]
[312243016,1705699869457,-500.0,0.00043013,31]
[312243017,1705699869466,-500.0,0.00043013,31]
[312243018,1705699869477,-401.7669085,0.00043013,31]
[312243019,1705699869486,-500.0,0.00043013,7]
[312243020,1705699869495,-500.0,0.00043013,7]
[312243021,1705699869505,-500.0,0.00043013,31]
[312243022,1705699869514,-1009.39,0.00043013,31]
[312243023,1705699869523,-500.0,0.00043013,31]
[312243024,1705699869532,-500.0,0.00043013,31]
[312243025,1705699869542,-500.0,0.00043013,31]
[312243026,1705699869551,-500.0,0.00043013,31]
[312243027,1705699869560,-500.0,0.00043013,31]
[312243028,1705699869570,-868.64,0.00043013,31]
[312243029,1705699869580,-500.0,0.00043013,31]
[312243030,1705699869589,-500.0,0.00043013,31]
[312243031,1705699869599,-1018.44,0.00043013,31]
[312243032,1705699869608,-500.0,0.00043013,31]
[312243033,1705699869618,-500.0,0.00043013,31]
[312243034,1705699869627,-500.0,0.00043013,31]
[312243035,1705699869636,-500.0,0.00043013,31]
[312243036,1705699869645,-512.16,0.00043013,31]
[312243037,1705699869655,-500.0,0.00043013,31]
[312243038,1705699869664,-500.0,0.00043013,31]
[312243039,1705699869674,-500.0,0.00043013,31]
[312243040,1705699869683,-500.0,0.00043013,31]
[312243041,1705699869694,-500.0,0.00043013,31]
[312243042,1705699869704,-500.0,0.00043013,14]
[312243043,1705699869714,-500.0,0.00043013,31]
[312243044,1705699869723,-500.0,0.00043013,31]
[312243045,1705699869732,-500.0,0.00043013,31]
[312243046,1705699869741,-500.0,0.00043013,31]
[312243047,1705699869751,-500.0,0.00043013,31]
[312243048,1705699869761,-500.0,0.00043013,31]
[312243049,1705699869770,-500.0,0.00043013,31]
[312243050,1705699869779,-500.0,0.00043013,31]
[312243051,1705699869789,-500.0,0.00043013,31]
[312243052,1705699869798,-500.0,0.00043013,31]
[312243053,1705699869808,-665.95,0.00043013,31]
[312243054,1705699869818,-667.54,0.00043013,31]
[312243055,1705699869827,-593.65,0.00043013,31]
[312243056,1705699869836,-500.0,0.00043013,31]
[312243057,1705699869846,-150.0,0.00043013,31]
[312243058,1705699869855,-500.0,0.00043013,31]
[312243059,1705699869865,-500.0,0.00043013,31]
[312243060,1705699869874,-650.55,0.00043013,31]
[312243061,1705699869884,-500.0,0.00043013,31]
[312243062,1705699869893,-781.25,0.00043013,31]
[312243063,1705699869901,-1243.77,0.00043013,31]
[312243064,1705699869910,-500.0,0.00043013,31]
[312243065,1705699869920,-500.0,0.00043013,31]
[312243066,1705699869930,-500.0,0.00043013,31]
[312243067,1705699869941,-500.0,0.00043013,31]
[312243068,1705699869951,-500.0,0.00043013,31]
[312243069,1705699869961,-500.0,0.00043013,31]
[312243070,1705699869970,-877.17,0.00043013,31]
[312243071,1705699869979,-500.0,0.00043013,31]
[312243072,1705699869989,-587.51,0.00043013,31]
[312243073,1705699869999,-2426.04,0.00043013,31]
[312243074,1705699870008,-500.0,0.00043013,31]
[312243075,1705699870018,-500.0,0.00043013,31]
[312243076,1705699870027,-604.81842274,0.00043013,31]
[312243077,1705699870036,-273.92524445,0.00043013,31]
[312243078,1705699870046,-500.0,0.00043013,31]
[312243079,1705699870055,-3410.38,0.00043013,31]
[312243080,1705699870064,-1617.45,0.00043013,31]
[312243081,1705699870073,-500.0,0.00043013,31]
[312243082,1705699870082,-500.0,0.00043013,31]
[312243083,1705699870091,-544.45,0.00043013,31]
[312243084,1705699870101,-500.0,0.00043013,31]
[312243085,1705699870110,-1221.49,0.00043013,31]
[312243086,1705699870120,-500.0,0.00043013,31]
[312243087,1705699870129,-1604.78,0.00043013,31]
[312243088,1705699870138,-10465.17,0.00043013,31]
[312243089,1705699870148,-500.0,0.00043013,31]
[312243090,1705699870157,-500.0,0.00043013,31]
[312243091,1705699870166,-1837.35,0.00043013,31]
[312243092,1705699870175,-500.0,0.00043013,31]
[312243093,1705699870185,-510.24,0.00043013,31]
[312243094,1705699870194,-910.12,0.00043013,31]
[312243095,1705699870203,-500.0,0.00043013,31]
[312243096,1705699870212,-521.23122966,0.00043013,31]
[312243097,1705699870222,-500.0,0.00043013,31]
[312243098,1705699870232,-500.0,0.00043013,31]
[312243099,1705699870242,-610.47579592,0.00043013,31]
[312243100,1705699870251,-500.0,0.00043013,31]
[312243101,1705699870261,-1567.25,0.00043013,31]
[312243102,1705699870270,-1246.54,0.00043013,31]
[312243103,1705699870280,-500.0,0.00043013,20]
[312243104,1705699870289,-500.0,0.00043013,31]
[312243105,1705699870300,-1549.67,0.00043013,31]
[312243106,1705699870309,-500.0,0.00043013,31]
[312243107,1705699870320,-7340.51,0.00043013,31]
[312243108,1705699870330,-625.0,0.00043013,31]
[312243109,1705699870340,-6633.49,0.00043013,31]
[312243110,1705699870349,-500.0,0.00043013,2]
[312243111,1705699870359,-500.0,0.00043013,31]
[312243112,1705699870368,-668.56,0.00043013,31]
[312243113,1705699870378,-8354.23,0.00043013,31]
[312243114,1705699870475,-15295.43802744,0.00043013,31]
[312243116,1705700480623,2707.42562247,0.00022069,5]
[312243117,1705700730164,-1042.23653843,0.00021916,2]
[312243118,1705700826123,-3145.68974836,0.00019969,2]
[312243119,1705700827112,-1058.07136396,0.00019969,2]
[312243120,1705700827134,-154.86062544,0.00021909,2]
[312243121,1705700827156,-168.33406994,0.0002191,2]
[312243122,1705700847140,-154.86062544,0.00020999,2]
[312243123,1705700847164,-154.86062544,0.00020999,2]
[312243124,1705700847185,-327.3065169,0.00021,2]
[312243125,1705700847207,-2076.94068734,0.00021909,2]
[312243131,1705700952143,-1197.20181474,0.00021898,2]
[312243132,1705700952164,-594.84589351,0.00021898,2]
[312243133,1705700952185,-11656.76,0.00021899,3]
[312243134,1705700952206,-1112.70762559,0.00021909,2]
[312243135,1705700952226,-126218.98422427,0.00021909,2]
[312243136,1705700952246,-1004.3710912,0.00021915,2]
[312243137,1705700952266,-193.5485533,0.00021918,2]
[312243138,1705700952292,-11274.50267511,0.00021979,2]
[312243139,1705700962130,-164.44494494,0.00021798,2]
[312243140,1705700962155,-234.2138898,0.00021979,2]
[312243141,1705700968133,-13391.28343509,0.00021979,2]
[312243142,1705700968154,-711.70401295,0.00022056,2]
[312243143,1705700968174,-178.67391792,0.00022076,2]
[312243144,1705700968193,-155.09307297,0.00022077,2]
[312243145,1705700968215,-293.62344897,0.00022077,2]
[312243146,1705700968235,-310.15159405,0.00022077,2]
[312243147,1705700968254,-208.44655989,0.00022078,2]
[312243148,1705700968274,-941.06369479,0.00022078,2]
[312243149,1705700968294,-618.89291521,0.00022078,2]
[312243150,1705700968313,-823.86653966,0.000227,2]
[312243151,1705700968334,-74.19666593,0.00023181,7]
[312243172,1705701031825,-125.80333407,0.00023181,7]
[312243175,1705701031837,-254.329407,0.0002389,2]
[312243177,1705701031849,-498.00832139,0.0002495,5]
[312243179,1705701031861,-167.197675,0.00024952,2]
[312243181,1705701031872,-1280.43916412,0.00024969,2]
[312243182,1705701031887,-2923.3219482,0.00024969,2]
[312243184,1705701031896,-1045.65136347,0.00025,2]
[312243186,1705701031906,-280.0,0.00025499,7]
[312243188,1705701031918,-1695.01755875,0.00027249,2]
[312243190,1705701031929,-264.03826997,0.0002725,2]
[312243193,1705701031940,-245.96363413,0.0002725,2]
[312243195,1705701031952,-5767.06701002,0.0002725,2]
[312243197,1705701031964,-290.08228321,0.00028,2]
[312243199,1705701031975,-391.0,0.00028049,15]
[312243201,1705701031986,-154.86062544,0.00029,2]
[312243204,1705701031997,-1879.41245692,0.00029968,2]
[312243206,1705701032007,-4203.76111232,0.00029969,2]
[312243208,1705701032019,-432.8970436,0.0003,4]
[312243210,1705701032030,-682.3767278,0.0003,3]
[312243212,1705701032040,-688.01285151,0.00030135,4]
[312243214,1705701032050,-464.33375401,0.00030136,2]
[312243216,1705701032060,-206.861446,0.00030137,2]
[312243218,1705701032070,-6095.17,0.00030591,3]
[312243220,1705701032082,-11029.46,0.00030591,3]
[312243223,1705701032092,-9191.22,0.00030591,3]
[312243225,1705701032102,-62682.28321139,0.00030601,5]
[312243227,1705701032113,-4925.37273712,0.00030601,3]
[312243229,1705701032124,-6850.74613957,0.00030601,3]
[312243231,1705701032134,-200.0,0.00030854,15]
[312243233,1705701032145,-35.79208429,0.00030854,15]
[312243265,1705701038101,-1438.42001622,0.00030601,3]
[312243266,1705701038114,-312.20791571,0.00030854,15]
[312243267,1705701038127,-977.19623955,0.00032398,2]
[312243268,1705701038138,-386.20387045,0.00033,2]
[312243269,1705701038148,-6762.26543772,0.00033,4]
[312243270,1705701038158,-200.0,0.00033939,15]
[312243272,1705701038168,-126.55604323,0.00033939,15]
[312243289,1705701040937,-319.08679849,0.00032,4]
[312243290,1705701040948,-73.44395677,0.00033939,15]
[312243291,1705701040959,-368.0,0.00033939,15]
[312243292,1705701040969,-1933.70713559,0.00034102,4]
[312243293,1705701040986,-386.565,0.00034102,4]
[312243346,1705701045956,-141.75839035,0.00034102,4]
[312243348,1705701045966,-150.0,0.0003453,2]
[312243350,1705701045975,-10.08381965,0.0003453,2]
[312243359,1705701249255,550.75007578,0.0002222,5]
[312243360,1705701296418,3971.58661394,0.00020997,7]
[312243361,1705701351797,200.0,0.00022044,7]
[312243365,1705701652841,280.0,0.00021914,7]
[312243366,1705701848297,254.329407,0.00017966,2]
[312243367,1705701949529,3482.3610978,0.00017956,2]
[312243368,1705701952278,280.0,0.00021886,7]
[312243369,1705702015196,3405.7554606,0.00017948,2]
[312243370,1705702025082,-594.84589351,0.00018942,2]
[312243371,1705702025104,-470.51403112,0.00018943,2]
[312243372,1705702035735,263.1680597,0.000182,2]
[312243373,1705702036375,5287.8170074,0.00018056,2]
[312243374,1705702042091,-154.86062544,0.00018941,2]
[312243375,1705702042113,-607.13204194,0.00018941,2]
[312243376,1705702042136,-154.86062544,0.00018942,2]
[312243377,1705702042156,-348.2599223,0.00018942,2]
[312243378,1705702049100,-425.87092238,0.0001894,2]
[312243379,1705702049123,-643.0307645,0.00018942,2]
[312243381,1705702146116,-1241.8968664,0.00018936,2]
[312243382,1705702146136,-5180.65166756,0.00018937,2]
[312243383,1705702146158,-294.70821043,0.00018937,2]
[312243384,1705702146203,-112.16933186,0.00018937,2]
[312243385,1705702149213,-20779.0378992,0.00018937,2]
[312243386,1705702149233,-154.86062544,0.00018937,2]
[312243387,1705702149257,-4811.28224285,0.00018938,2]
[312243388,1705702149277,-2038.05199526,0.00018938,2]
[312243389,1705702149297,-1602.24051039,0.00018938,2]
[312243390,1705702149317,-2102.11817883,0.00018938,2]
[312243391,1705702149337,-275.03093429,0.00018938,2]
[312243392,1705702149358,-8757.15684933,0.00018939,2]
[312243393,1705702149377,-5639.35059667,0.0001894,2]
[312243394,1705702152091,-8427.80491247,0.0001894,2]
[312243395,1705702154147,-7608.45271526,0.0001894,2]
[312243396,1705702154169,-242.50729689,0.00018942,2]
[312243397,1705702154191,-154.86062544,0.00018942,2]
[312243398,1705702154215,-177.15191446,0.00018956,2]
[312243399,1705702154236,-164.65058158,0.00018961,2]
[312243400,1705702154257,-167.197675,0.00019178,2]
[312243401,1705702154278,-9776.02,0.00019625,3]
[312243402,1705702154300,-6788.91,0.00019635,3]
[312243403,1705702154321,-154.96896906,0.00019643,2]
[312243404,1705702154341,-398.05301093,0.00019644,2]
[312243405,1705702154377,-24900.0,0.00019645,2]
[312243406,1705702154399,-174.24179847,0.00019786,2]
[312243407,1705702154422,-200.0,0.00019896,2]
[312243408,1705702154445,-1197.20181474,0.0002,2]
[312243409,1705702154465,-588.89360979,0.00021,2]
[312243410,1705702154486,-1763.93265691,0.00021,2]
[312243411,1705702154508,-327.3065169,0.00021,2]
[312243412,1705702154528,-290.34519337,0.00021886,2]
[312243413,1705702154548,-169.67979,0.00021918,2]
[312243414,1705702154569,-425.53656097,0.00022,2]
[312243415,1705702154592,-3963.07176261,0.00022,2]
[312243416,1705702154612,-300.68115955,0.00022043,2]
[312243417,1705702154633,-7059.20846776,0.00022043,2]
[312243418,1705702154655,-40197.07112468,0.00022044,2]
[312243419,1705702154675,-1029.84961914,0.00022221,2]
[312243420,1705702154696,-169.67979,0.00022559,2]
[312243421,1705702154716,-155.15231656,0.00023181,2]
[312243422,1705702154735,-300.0,0.00023181,2]
[312243423,1705702154935,-169.67979,0.000232,2]
[312243424,1705702154958,-546.17876194,0.000237,2]
[312243425,1705702154978,-224.510899,0.000237,2]
[312243426,1705702154998,-602.57250633,0.000237,2]
[312243427,1705702155019,-500.0,0.000237,2]
[312243428,1705702155038,-476.07740433,0.000237,2]
[312243429,1705702155059,-500.0,0.000237,2]
[312243430,1705702155078,-501.02390455,0.000237,2]
[312243431,1705702155098,-500.0,0.000237,2]
[312243432,1705702155118,-500.0,0.000237,2]
[312243433,1705702155139,-500.0,0.000237,2]
[312243434,1705702155162,-500.0,0.000237,2]
[312243435,1705702155184,-500.0,0.000237,2]
[312243436,1705702155207,-500.0,0.000237,2]
[312243437,1705702155228,-500.0,0.000237,2]
[312243438,1705702155252,-500.0,0.000237,2]
[312243439,1705702155273,-500.0,0.000237,2]
[312243440,1705702155294,-500.0,0.000237,2]
[312243441,1705702155315,-500.0,0.000237,2]
[312243442,1705702155338,-396.31038271,0.000237,2]
[312243443,1705702155358,-218.91529236,0.00023741,2]
[312243444,1705702155377,-169.67979,0.00023841,2]
[312243445,1705702155398,-4011.58774012,0.00024,2]
[312243446,1705702155419,-161.45094315,0.00024074,7]
[312243447,1705702164120,-5180.65166756,0.00019437,2]
[312243448,1705702164141,-361.84341018,0.00019633,2]
[312243449,1705702164181,-36.0741254,0.00019633,2]
[312243450,1705702166442,244.46487632,0.00018942,2]
[312243453,1705702214135,1163.33026946,0.00018942,2]
[312243462,1705702232020,-2053.43060886,0.00018942,2]
[312243463,1705702232029,-167.269291,0.00021918,2]
[312243464,1705702232040,-3955.54830897,0.00022,2]